Cogmind - Beta 15 @@@ ROGUE MODE // 2025.10.11 @ 08:21:57 Player: GermanMO Result: Destroyed by S-43 Plague with Heavy Machine Gun Performance ------------- Evolutions (9) 4500 Regions Visited (14) 2800 Robots Destroyed (107) 535 Value Destroyed (4119) 4119 Prototype IDs (8) 160 Alien Tech Used (0) 0 Bonus (760) 760 TOTAL SCORE: 12874 Bonus ------- High Alert Combat Kills 475 Entered Garrisons 200 Used RIF Installer 500 Friendly Fire -415 Cogmind --------- Core Integrity 0/1600 Matter 300/300 Energy 99/100 System Corruption 9% Temperature Cool (0) Movement Core (50) Location -1/Access Parts ------- > --- POWER (4) -------- (None) > --- PROPULSION (9) --- (None) > --- UTILITY (9) ------ (None) > --- WEAPON (3) ------- (None) > --- INVENTORY (5) ---- Micro Antimatter Reactor Centrium Wheel Advanced Sensor Array Improved Signal Interpreter Force Lance Peak State ------------ > --- POWER ------------ Light Quantum Reactor Light Quantum Reactor > --- PROPULSION ------- VTOL Module Improved VTOL Module Xenon Bombardment Thruster Xenon Bombardment Thruster Nuclear Pulse Array Field Propulsion Array > --- UTILITY ---------- Advanced Weight Redist. System Advanced Sensor Array Advanced Signal Interpreter Long-range Terrain Scanner Terrain Scan Processor Terrain Scan Processor Advanced Targeting Computer Matter Filter > --- WEAPON ----------- Smartbomb Launcher Force Lance > --- INVENTORY -------- Light Antimatter Reactor Xenon Bombardment Thruster Advanced Weight Redist. System Improved Signal Interpreter Advanced Force Field [Rating: 110] Favorites ----------- Power Enhanced Fission Core Engine Heavy Ion Engine Power Core Enhanced Fission Core Reactor Light Antimatter Reactor Propulsion Improved VTOL Module Leg Aluminum Leg Flight Unit Improved VTOL Module Utility Advanced Targeting Computer Device Advanced Sensor Array Processor Advanced Targeting Computer Protection Hardened Light Armor Plating Weapon Heavy Hammer Energy Gun Pulse Rifle Energy Cannon Long-range Proton Cannon Ballistic Gun Assault Rifle Launcher Smartbomb Launcher Impact Weapon Heavy Hammer Piercing Weapon Lance Build | -11 -10 -9 -8 -8 -7 -6 -5 -4 -4 -3 -2 -2 -2 -1 ------- Run | Yrd Mat Mat Mat Sto Fac Fac Fac Fac Ext Res Res Gar Res Acc Slots Evolved 18 | . . 2 2 . 2 2 2 2 . 2 2 . . 2 Power 3 | . . . . . . 1 . . . . 1 . . 1 Propulsion 7 | . . 2 . . . 1 1 1 . 1 . . . 1 Utility 7 | . . . 2 . 2 . 1 1 . . 1 . . . Weapon 1 | . . . . . . . . . . 1 . . . . Parts Attached 75 | 7 1 11 6 8 3 2 5 5 5 2 2 3 7 8 Power 13 | 1 . . 1 1 2 1 . 2 . . 1 1 2 1 Engine 4 | 1 . . 1 1 1 . . . . . . . . . Core 4 | . . . . . 1 1 . 1 . . 1 . . . Reactor 5 | . . . . . . . . 1 . . . 1 2 1 Propulsion 21 | 2 . 7 . 3 . . 2 1 . 1 . 2 2 1 Treads . | . . . . . . . . . . . . . . . Leg 3 | 2 . . . . . . . . . . . . . 1 Wheel . | . . . . . . . . . . . . . . . Hover . | . . . . . . . . . . . . . . . Flight 18 | . . 7 . 3 . . 2 1 . 1 . 2 2 . Utility 28 | 2 . 3 4 1 1 1 1 2 4 1 1 . 2 5 Device 18 | 2 . . 3 . 1 . 1 1 2 1 1 . 1 5 Storage . | . . . . . . . . . . . . . . . Processor 6 | . . 1 1 1 . . . 1 1 . . . 1 . Hackware . | . . . . . . . . . . . . . . . Protection 4 | . . 2 . . . 1 . . 1 . . . . . Artifact . | . . . . . . . . . . . . . . . Weapon 13 | 2 1 1 1 3 . . 2 . 1 . . . 1 1 Energy Gun 2 | . . . . 2 . . . . . . . . . . Energy Cannon 2 | . . . . . . . 1 . . . . . . 1 Ballistic Gun 4 | 2 . . 1 1 . . . . . . . . . . Ballistic Cannon . | . . . . . . . . . . . . . . . Launcher 1 | . . . . . . . . . 1 . . . . . Special Weapon . | . . . . . . . . . . . . . . . Impact Weapon 2 | . 1 1 . . . . . . . . . . . . Slashing Weapon . | . . . . . . . . . . . . . . . Piercing Weapon 2 | . . . . . . . 1 . . . . . 1 . Special Melee Weapon . | . . . . . . . . . . . . . . . Unidentified Prototypes 8 | . . 1 2 4 . . . 1 . . . . . . Parts Lost 42 | . . 9 . . . 3 3 . 1 . . 3 15 8 Power 5 | . . 1 . . . . 1 . . . . . 2 1 Propulsion 17 | . . 5 . . . 3 . . . . . 1 7 1 Utility 16 | . . 2 . . . . 1 . 1 . . 2 5 5 Weapon 4 | . . 1 . . . . 1 . . . . . 1 1 Highest Loss Streak 15 | . . 6 . . . 2 1 . 1 . . 2 15 7 To Critical Strikes 1 | . . . . . . . . . . . . . 1 . Average Backups 3 | . 4 4 4 5 3 4 4 3 3 2 4 4 4 3 Power . | . . . . . . . . . . 1 1 1 1 . Propulsion . | . 3 2 . . 1 . 1 . . . . . . . Utility 2 | . 1 1 4 4 2 3 2 2 1 1 2 2 3 1 Weapon . | . . . . . . . . 1 1 . . . . . Tool/Special . | . . . . . . . . . . . . . . . Unused Backups 13 | . 3 . 2 3 . . 1 . . . . . . 4 Power 1 | . . . . . . . . . . . . . . 1 Propulsion 5 | . 3 . . 1 . . . . . . . . . 1 Utility 7 | . . . 2 2 . . 1 . . . . . . 2 Weapon . | . . . . . . . . . . . . . . . Tool/Special . | . . . . . . . . . . . . . . . Average Slot Usage (%) 73 | . 100 68 86 90 91 79 66 68 78 80 78 72 66 25 Engine 3 | . 14 6 5 9 4 6 1 . . . . . . . Core 1 | . . . . . 2 . . 3 5 4 4 3 . . Reactor 1 | . . . . . . . . 2 5 4 4 4 6 2 Leg 3 | . 28 13 . . . . . . . . . . . 2 Flight 21 | . . 11 36 36 30 25 22 25 26 28 26 23 21 . Device 16 | . 28 13 17 14 22 20 19 15 19 14 17 15 14 10 Processor 10 | . . 2 9 12 15 13 11 9 12 14 13 13 14 7 Protection 3 | . . 4 9 9 7 6 . . 3 4 4 3 . . Ballistic Gun 1 | . 18 6 . . . . . . . . . . . . Launcher 1 | . . . . . . . . . 2 4 4 4 3 . Impact Weapon 4 | . 9 10 9 9 7 6 4 . . . . . . . Piercing Weapon 1 | . . . . . . . . 5 2 3 4 3 3 . Peak Build Rating 110 | 9 11 16 31 35 36 41 61 79 87 95 104 100 110 64 Average Rating 49 | 4 10 10 26 28 35 36 55 71 82 91 96 93 90 37 On Entrance 45 | . 9 11 16 28 31 36 28 60 79 84 95 97 96 9 Naked Turns 5 | . . . . . . . . . . . . . . 5 Heaviest Build 51 | 11 11 14 18 18 18 20 20 39 44 49 49 49 51 37 Greatest Support 58 | 20 20 20 19 19 25 20 36 40 49 53 53 56 58 39 Greatest Overweight (x) 2 | . . 1 1 . . 1 . . 1 . . 1 2 . Average Overweight (x) . | . . . . . . . . . . . . . . . Largest Inventory Capacity 5 | 5 5 5 5 5 5 5 5 5 5 5 5 5 5 5 Average Capacity 5 | 5 5 5 5 5 5 5 5 5 5 5 5 5 5 5 Most Carried 5 | 3 5 5 5 5 5 5 5 5 5 3 5 5 5 5 Average Carried 4 | . 4 4 4 4 3 4 4 4 4 2 4 4 4 3 Final Capacity 5 | 5 5 5 5 5 5 5 5 5 5 5 5 5 5 5 Final Carried 5 | 1 5 5 5 5 4 5 5 4 4 2 5 5 5 5 Class Distribution -------------------- 28% | Mutant 28% | Scout 20% | Scavenger-Scout 12% | Sprinter 5% | Assassin Dominant Class ---------------- Mutant | -10/Materials Mutant | -9/Materials Scout | -8/Materials Scout | -8/Storage Scout | -7/Factory Scout | -6/Factory Scout | -5/Factory Sprinter | -4/Factory Sprinter | -4/Extension Scavenger-Scout | -3/Research Scavenger-Scout | -2/Research Scavenger-Sprinter | -2/Garrison Scavenger-Scout | -2/Research Mutant | -1/Access Resources | -11 -10 -9 -8 -8 -7 -6 -5 -4 -4 -3 -2 -2 -2 -1 ----------- Run | Yrd Mat Mat Mat Sto Fac Fac Fac Fac Ext Res Res Gar Res Acc Matter Collected 2063 | 368 40 147 50 105 90 26 35 30 666 12 . 75 294 125 Remotely . | . . . . . . . . . . . . . . . Salvage Created 3805 | 243 51 430 114 366 48 64 71 30 1450 12 . 597 196 133 Parts 182 | 15 4 22 5 2 1 4 1 2 76 2 . 25 14 9 Haulers Intercepted 1 | . . . . . 1 . . . . . . . . . Recyclers Shooed 1 | . . . . . . . . . . . . . 1 . Parts Field Recycled . | . . . . . . . . . . . . . . . Retrieved Matter . | . . . . . . . . . . . . . . . Parts Self-Destructed . | . . . . . . . . . . . . . . . Prevented . | . . . . . . . . . . . . . . . Kills | -11 -10 -9 -8 -8 -7 -6 -5 -4 -4 -3 -2 -2 -2 -1 ------- Run | Yrd Mat Mat Mat Sto Fac Fac Fac Fac Ext Res Res Gar Res Acc Combat Hostiles Destroyed 70 | . 3 8 1 4 . 3 2 . 28 . . 19 . 2 Melee 14 | . . 4 1 . . 2 1 . 6 . . . . . Guns 6 | . 3 3 . . . . . . . . . . . . Cannons 2 | . . . . . . . . . . . . . . 2 AOE 41 | . . . . . . . . . 22 . . 19 . . Classes Destroyed 14 | 3 1 4 . 1 1 . . . 4 . . . . . Worker 8 | 2 . . 1 . . . . . 3 . . . 2 . Builder 12 | . . 1 2 . . . . . 6 1 . . 2 . Tunneler 5 | 5 . . . . . . . . . . . . . . Hauler 1 | . . . . . 1 . . . . . . . . . Recycler 4 | 1 . . . . . . . . 2 . . . 1 . Operator 2 | . . . . 1 1 . . . . . . . . . Watcher 4 | . . 1 . . . . . 1 2 . . . . . Swarmer 26 | . 3 . . . . 3 1 . 10 . . 9 . . Grunt 18 | . . 3 . 3 . . 1 . 5 . . 6 . . Duelist 1 | . . . . . . . . . . . . 1 . . Sentry 10 | . . 5 1 1 . . . . 3 . . . . . Hunter 4 | . . . . . . . . . 2 . . 2 . . Programmer 3 | . . . . . . . . . 1 . . . . 2 Behemoth 3 | . . . . . . . . . 2 . . 1 . . Thug 3 | . . . . . . . . . 3 . . . . . Butcher 1 | . . . . . . . . . 1 . . . . . Guerrilla 2 | . . . . . . . . . 2 . . . . . Best Kill Streak 19 | 6 3 3 3 3 1 3 2 1 14 1 . 19 2 2 Combat Bots Only 19 | . 3 3 1 3 . 3 2 . 8 . . 19 . 2 Max Kills in Single Turn 5 | 1 2 1 1 1 1 1 1 1 5 1 . 5 1 1 Gunslinging 1 | . 1 . . . . . . . . . . . . . Exploded 5 | . . . . . . . . . 5 . . 5 . . Melee 1 | . . 1 1 . . 1 1 . 1 . . . . . Uniques/NPCs Destroyed . | . . . . . . . . . . . . . . . Combat | -11 -10 -9 -8 -8 -7 -6 -5 -4 -4 -3 -2 -2 -2 -1 -------- Run | Yrd Mat Mat Mat Sto Fac Fac Fac Fac Ext Res Res Gar Res Acc Hostile Shots Fired 572 | . 18 77 4 18 9 23 37 . 43 3 . 17 141 182 Missed 238 | . 5 23 3 11 7 13 14 . 21 3 . 6 59 73 Hits 334 | . 13 54 1 7 2 10 23 . 22 . . 11 82 109 Melee 9 | . . . . . . 4 . . . . . . . 5 Projectile 325 | . 13 54 1 7 2 6 23 . 22 . . 11 82 104 AOE 4 | . . . . . . 2 . . . . . . . 2 Critical Strikes 14 | . . 1 . 1 . 1 1 . . . . . 3 7 Part Disruptions 1 | . . . . . . . . . . . . . . 1 Damage Taken 6738 | . 111 770 15 105 23 254 397 . 528 . . 174 1846 2515 Core 3095 | . 32 114 15 . 6 82 118 . 27 . . . 1086 1615 Absorbed by Shields . | . . . . . . . . . . . . . . . Core Remaining (%) 85 | 100 87 71 . 97 99 90 88 . 97 100 . . 25 . Volleys Fired 137 | 18 12 30 . . . . 4 . 36 . . 23 . 14 Largest 2 | 2 2 1 . . . . 1 . 1 . . 1 . 1 Hottest 120 | 40 40 20 . . . . 81 . 46 . . 46 . 120 Shots Fired 161 | 36 19 30 . . . . 4 . 36 . . 23 . 13 Gun 85 | 36 19 30 . . . . . . . . . . . . Cannon 17 | . . . . . . . 4 . . . . . . 13 Launcher 59 | . . . . . . . . . 36 . . 23 . . Special . | . . . . . . . . . . . . . . . Kinetic 85 | 36 19 30 . . . . . . . . . . . . Thermal 13 | . . . . . . . . . . . . . . 13 Explosive 59 | . . . . . . . . . 36 . . 23 . . Electromagnetic 4 | . . . . . . . 4 . . . . . . . Robot Hit Streak 10 | 5 4 10 . . . . 5 . . . . . . 4 Robot Miss Streak 5 | 5 2 1 . . . . 1 . . . . . . 2 Penetration Max . | . . . . . . . . . . . . . . . Secondary Targets 1 | . 1 . . . . . . . . . . . . . Max Gunslinging Chain 1 | . 1 . . . . . . . . . . . . . Shots Hit Robots 137 | 16 10 40 4 17 4 3 9 1 19 1 . . 7 6 Core Hits 153 | 9 4 10 2 . . 1 1 1 78 . . 41 4 2 Critical Kills 1 | . . 1 . . . . . . . . . . . . Critical Parts Destroyed 8 | . . 1 . 3 1 1 2 . . . . . . . Critical Strikes 12 | . . 2 . 3 1 1 2 . 3 . . . . . Smash 9 | . . 2 . 3 1 1 2 . . . . . . . Impale 3 | . . . . . . . . . 3 . . . . . Melee Attacks 278 | . 8 22 20 31 44 17 26 29 23 28 3 7 18 2 Impact 168 | . 8 22 20 31 44 17 26 . . . . . . . Slashing . | . . . . . . . . . . . . . . . Piercing 110 | . . . . . . . . 29 23 28 3 7 18 2 Sneak Attacks 28 | . . 1 3 2 1 . . . 14 1 . . 6 . Combat Hostiles 1 | . . . . 1 . . . . . . . . . . Follow-up Attacks . | . . . . . . . . . . . . . . . Damage Inflicted 13543 | 219 135 978 250 931 223 123 344 62 6070 54 . 3187 674 293 Guns 676 | 219 135 322 . . . . . . . . . . . . Cannons 368 | . . . . . . . 75 . . . . . . 293 Explosions 7886 | . . . . . . . . . 4699 . . 3187 . . Melee 4557 | . . 656 250 931 223 123 269 62 1371 54 . . 618 . Ramming 56 | . . . . . . . . . . . . . 56 . Kinetic 676 | 219 135 322 . . . . . . . . . . . . Thermal 389 | . . . . . . . . . 96 . . . . 293 Explosive 7790 | . . . . . . . . . 4603 . . 3187 . . Electromagnetic 75 | . . . . . . . 75 . . . . . . . Impact 2452 | . . 656 250 931 223 123 269 . . . . . . . Slashing . | . . . . . . . . . . . . . . . Piercing 2105 | . . . . . . . . 62 1371 54 . . 618 . Highest Corruption 14 | . . . . . . . . . . . . . 14 9 Average Corruption 5 | . . . . . . . . . . . . . 7 4 Corruption Purged . | . . . . . . . . . . . . . . . Corruption Blocked . | . . . . . . . . . . . . . . . Effects 12 | . . . . . . . . . . . . . 2 10 Message Errors 2 | . . . . . . . . . . . . . . 2 Matter Fused 1 | . . . . . . . . . . . . . . 1 Heat Flow Errors 1 | . . . . . . . . . . . . . 1 . Energy Discharges 3 | . . . . . . . . . . . . . . 3 Parts Rejected 1 | . . . . . . . . . . . . . 1 . Data Loss (minor) 2 | . . . . . . . . . . . . . . 2 Alerts 1 | . . . . . . . . . . . . . . 1 Weapon Failures 1 | . . . . . . . . . . . . . . 1 Overload Shots . | . . . . . . . . . . . . . . . Overflow Damage 1510 | . . 179 60 364 83 47 100 . 372 24 . 121 160 . Projectiles . | . . . . . . . . . . . . . . . Explosions 286 | . . . . . . . . . 165 . . 121 . . Melee 1224 | . . 179 60 364 83 47 100 . 207 24 . . 160 . Knockbacks 9 | . . 5 1 . . 1 2 . . . . . . . Impact 8 | . . 4 1 . . 1 2 . . . . . . . Kinetic . | . . . . . . . . . . . . . . . Secondary 1 | . . 1 . . . . . . . . . . . . Self-Inflicted Damage 234 | . . . . . . . . . 197 . . 12 25 . Shots 4 | . . . . . . . . . 2 . . 2 . . Rammed 11 | . . . . . . . . . . . . . 11 . Targets Rammed 11 | . . . . . . . . . . . . . 11 . Kicked . | . . . . . . . . . . . . . . . Crushed . | . . . . . . . . . . . . . . . Highest Temperature 326 | . . 6 . 13 . . 28 6 301 326 22 206 226 68 Average Temperature 79 | . . 6 . 13 . . 12 2 87 78 9 140 34 36 Received Heat Transfer 555 | . . 303 9 72 9 . 81 . 27 . . 36 18 . Effects 2 | . . . . . . . . . 2 . . . . . Interference 2 | . . . . . . . . . 2 . . . . . Siege Activations . | . . . . . . . . . . . . . . . Martial Activations . | . . . . . . . . . . . . . . . Shielding Activations . | . . . . . . . . . . . . . . . Robots Disrupted . | . . . . . . . . . . . . . . . Combat Hostiles . | . . . . . . . . . . . . . . . Robots Corrupted 14 | . . 3 2 6 1 1 1 . . . . . . . Combat Hostiles 7 | . . 1 . 4 . 1 1 . . . . . . . Parts Fried 24 | . . 7 7 7 2 1 . . . . . . . . Impact Corruptions 38 | . . 8 3 19 3 2 3 . . . . . . . Robots Melted . | . . . . . . . . . . . . . . . Combat Hostiles . | . . . . . . . . . . . . . . . Parts Melted . | . . . . . . . . . . . . . . . Heat Transferred 322 | . . . . . . . . . 100 . . . . 222 Parts Sabotaged . | . . . . . . . . . . . . . . . Parts Stolen . | . . . . . . . . . . . . . . . Parts Stripped . | . . . . . . . . . . . . . . . Power Chain Reactions . | . . . . . . . . . . . . . . . Alert | -11 -10 -9 -8 -8 -7 -6 -5 -4 -4 -3 -2 -2 -2 -1 ------- Run | Yrd Mat Mat Mat Sto Fac Fac Fac Fac Ext Res Res Gar Res Acc Maximum Alert Level 3 | . . 1 . . . . 1 . 3 2 . 3 2 . Low Security (%) 74 | 100 100 98 100 100 100 100 66 100 12 . 100 43 . 100 Level 1 15 | . . 1 . . . . 33 . 52 46 . 18 67 . Level 2 8 | . . . . . . . . . 16 53 . 28 32 . Level 3 2 | . . . . . . . . . 19 . . 9 . . Level 4 . | . . . . . . . . . . . . . . . Level 5 . | . . . . . . . . . . . . . . . High Security . | . . . . . . . . . . . . . . . Max Security . | . . . . . . . . . . . . . . . Peak Influence 909 | 10 70 205 93 112 99 132 264 116 909 476 181 769 435 176 Initial 472 | . . . 78 12 43 35 41 112 42 472 181 30 432 176 Average 138 | 2 12 88 13 25 46 82 129 94 399 403 117 292 366 59 Influence Increases 3952 | 40 82 430 74 201 196 140 369 76 1163 49 9 769 193 161 Destroy 0b10 Robot/C 1400 | . 60 160 20 80 . 60 40 . 560 . . 380 . 40 Destroy 0b10 Robot/NC 195 | 40 . 10 15 20 10 . . 5 65 5 . . 25 . Destroy Leader 220 | . 10 62 10 20 2 10 . 2 54 . . 40 . 10 Allied During Kill 96 | . . . . . . . . . 96 . . . . . Successful Hack 31 | . 5 . . . . . 12 . . . . 14 . . Disable Machine 270 | . . 15 15 75 15 . . 15 75 . . 30 . 30 Destroy Structure 870 | . 7 3 14 6 34 10 32 54 298 44 9 305 33 21 Partial Spotted 135 | . . 15 . . 45 45 15 . 15 . . . . . Lose Combat Pursuer 735 | . . 165 . . 90 15 270 . . . . . 135 60 Influence Decreases 3933 | 40 82 245 229 135 219 128 224 218 350 627 292 40 667 437 Entered New Map 1461 | . . . 107 18 53 38 44 118 46 429 142 10 337 119 Time Decay 2045 | 40 82 155 122 117 166 60 150 100 254 198 150 . 180 271 Lost Part 387 | . . 90 . . . 30 30 . 10 . . 30 150 47 Lost Ally 40 | . . . . . . . . . 40 . . . . . Squads Dispatched 23 | . 1 3 . 2 1 1 6 . 1 2 1 . 2 3 Investigation 2 | . . . . . . . 1 . . . 1 . . . Extermination 7 | . . . . . 1 . 1 . . 2 . . 1 2 Reinforcement 14 | . 1 3 . 2 . 1 4 . 1 . . . 1 1 Assault . | . . . . . . . . . . . . . . . Garrison . | . . . . . . . . . . . . . . . Intercept . | . . . . . . . . . . . . . . . Searches Triggered . | . . . . . . . . . . . . . . . Construction Impeded 1 | . . . . . . . . . 1 . . . . . Haulers Reinforced . | . . . . . . . . . . . . . . . Active Scanning Responses . | . . . . . . . . . . . . . . . Cargo Convoy Interrupts . | . . . . . . . . . . . . . . . Stealth | -11 -10 -9 -8 -8 -7 -6 -5 -4 -4 -3 -2 -2 -2 -1 --------- Run | Yrd Mat Mat Mat Sto Fac Fac Fac Fac Ext Res Res Gar Res Acc Distress Signals 8 | . . 3 . . . . . . 1 . . . 3 1 Communications Jammed . | . . . . . . . . . . . . . . . Distress Signals . | . . . . . . . . . . . . . . . Times Spotted 163 | . 8 23 1 6 7 9 22 1 15 1 . 12 25 33 Peak Tracking Total 24 | . 3 8 1 3 5 5 6 1 5 1 . 5 19 24 Tactical Retreats 22 | . . 5 . . 4 1 6 . . . . . 3 3 Traps | -11 -10 -9 -8 -8 -7 -6 -5 -4 -4 -3 -2 -2 -2 -1 ------- Run | Yrd Mat Mat Mat Sto Fac Fac Fac Fac Ext Res Res Gar Res Acc Traps Triggered 3 | . . . . 2 . . 1 . . . . . . . Indirectly . | . . . . . . . . . . . . . . . Trap Hack Attempts . | . . . . . . . . . . . . . . . Triggered . | . . . . . . . . . . . . . . . Disarmed . | . . . . . . . . . . . . . . . Reprogrammed . | . . . . . . . . . . . . . . . Reused . | . . . . . . . . . . . . . . . Traps Extracted . | . . . . . . . . . . . . . . . Installed . | . . . . . . . . . . . . . . . Triggered . | . . . . . . . . . . . . . . . Machines | -11 -10 -9 -8 -8 -7 -6 -5 -4 -4 -3 -2 -2 -2 -1 ---------- Run | Yrd Mat Mat Mat Sto Fac Fac Fac Fac Ext Res Res Gar Res Acc Machines Disabled 20 | . . 1 1 5 1 . . 1 7 . . 2 . 2 Max in Single Turn 3 | . . 1 1 1 1 . . 1 3 . . 1 . 1 Energy Cycler 2 | . . . . . . . . . 2 . . . . . Machines Repaired . | . . . . . . . . . . . . . . . Machines Dismantled . | . . . . . . . . . . . . . . . Machines Sabotaged . | . . . . . . . . . . . . . . . Overloaded Fab Kills . | . . . . . . . . . . . . . . . Hacking | -11 -10 -9 -8 -8 -7 -6 -5 -4 -4 -3 -2 -2 -2 -1 --------- Run | Yrd Mat Mat Mat Sto Fac Fac Fac Fac Ext Res Res Gar Res Acc Machines Accessed 16 | . 3 1 1 . . . 1 1 3 1 1 2 2 . Terminals 14 | . 3 1 1 . . . . 1 3 1 . 2 2 . Fabricators . | . . . . . . . . . . . . . . . Repair Stations . | . . . . . . . . . . . . . . . Recycling Units . | . . . . . . . . . . . . . . . Scanalyzers 1 | . . . . . . . 1 . . . . . . . Garrison Access 1 | . . . . . . . . . . . 1 . . . Total Hacks 28 | . 4 2 1 . . . 4 2 4 2 4 3 2 . Successful 16 | . 3 2 1 . . . 1 1 2 2 1 2 1 . Failed 12 | . 1 . . . . . 3 1 2 . 3 1 1 . Catastrophic . | . . . . . . . . . . . . . . . Database Lockouts . | . . . . . . . . . . . . . . . Manual . | . . . . . . . . . . . . . . . Terminals 20 | . 4 2 1 . . . . 2 4 2 . 3 2 . Fabricators . | . . . . . . . . . . . . . . . Repair Stations . | . . . . . . . . . . . . . . . Recycling Units . | . . . . . . . . . . . . . . . Scanalyzers 4 | . . . . . . . 4 . . . . . . . Garrison Access 4 | . . . . . . . . . . . 4 . . . Terminal Hacks 14 | . 3 2 1 . . . . 1 2 2 . 2 1 . Record 4 | . . 1 . . . . . . . 2 . . 1 . Robot Analysis 1 | . . . 1 . . . . . . . . . . . Open Door 3 | . . . . . . . . 1 2 . . . . . Emergency Access Points 1 | . . . . . . . . . . . . 1 . . Alert Level 1 | . 1 . . . . . . . . . . . . . Transport Status 1 | . . 1 . . . . . . . . . . . . Hauler Manifests 1 | . 1 . . . . . . . . . . . . . Zone Layout 1 | . 1 . . . . . . . . . . . . . Patrol Navigation 1 | . . . . . . . . . . . . 1 . . Fabricator Hacks . | . . . . . . . . . . . . . . . Repair Station Hacks . | . . . . . . . . . . . . . . . Recycling Unit Hacks . | . . . . . . . . . . . . . . . Scanalyzer 1 | . . . . . . . 1 . . . . . . . Insert Component 1 | . . . . . . . 1 . . . . . . . Garrison Access Hacks 1 | . . . . . . . . . . . 1 . . . Unlock Access 1 | . . . . . . . . . . . 1 . . . Unauthorized Hacks . | . . . . . . . . . . . . . . . Terminals . | . . . . . . . . . . . . . . . Fabricators . | . . . . . . . . . . . . . . . Repair Stations . | . . . . . . . . . . . . . . . Recycling Units . | . . . . . . . . . . . . . . . Scanalyzers . | . . . . . . . . . . . . . . . Garrison Access . | . . . . . . . . . . . . . . . Data Cores Recovered 1 | . . . . . 1 . . . . . . . . . Used . | . . . . . . . . . . . . . . . Hacking Detections 14 | . 3 1 1 . . . 1 . 3 1 1 2 1 . Full Trace Events 2 | . . . . . . . 1 . . . 1 . . . Feedback Events . | . . . . . . . . . . . . . . . Feedback Blocked . | . . . . . . . . . . . . . . . Robot Schematics Acquired . | . . . . . . . . . . . . . . . Robots Built . | . . . . . . . . . . . . . . . Authchips . | . . . . . . . . . . . . . . . Time . | . . . . . . . . . . . . . . . Total Robot Build Rating . | . . . . . . . . . . . . . . . Part Schematics Acquired . | . . . . . . . . . . . . . . . Parts Built . | . . . . . . . . . . . . . . . Authchips . | . . . . . . . . . . . . . . . Time . | . . . . . . . . . . . . . . . Total Part Build Rating . | . . . . . . . . . . . . . . . Parts Repaired . | . . . . . . . . . . . . . . . Time . | . . . . . . . . . . . . . . . Parts Recycled . | . . . . . . . . . . . . . . . Recycled Matter . | . . . . . . . . . . . . . . . Retrieved Matter . | . . . . . . . . . . . . . . . Retrieved Components . | . . . . . . . . . . . . . . . Parts Scanalyzed 1 | . . . . . . . 1 . . . . . . . Part Schematics Acquired . | . . . . . . . . . . . . . . . Parts Damaged 1 | . . . . . . . 1 . . . . . . . Bothacking | -11 -10 -9 -8 -8 -7 -6 -5 -4 -4 -3 -2 -2 -2 -1 ------------ Run | Yrd Mat Mat Mat Sto Fac Fac Fac Fac Ext Res Res Gar Res Acc Used RIF Installer 1 | . . . . . . . . . . . . 1 . . Robots Hacked . | . . . . . . . . . . . . . . . Non-combat . | . . . . . . . . . . . . . . . Combat . | . . . . . . . . . . . . . . . Robot Hacks Applied . | . . . . . . . . . . . . . . . Relay Couplers Released . | . . . . . . . . . . . . . . . Fabnet Peak Effective % . | . . . . . . . . . . . . . . . Robots Rewired . | . . . . . . . . . . . . . . . Allies Hacked . | . . . . . . . . . . . . . . . Hacks Repelled . | . . . . . . . . . . . . . . . Allies | -11 -10 -9 -8 -8 -7 -6 -5 -4 -4 -3 -2 -2 -2 -1 -------- Run | Yrd Mat Mat Mat Sto Fac Fac Fac Fac Ext Res Res Gar Res Acc Total Allies 3 | . . . . . . . . . 3 . . . . . Largest Group 3 | . . . . . . . . . 3 . . . . . Highest-Rated Group 122 | . . . . . . . . . 122 . . . . . Highest-Rated Ally 46 | . . . . . . . . . 46 . . . . . Total Orders . | . . . . . . . . . . . . . . . Ally Attacks 5 | . . . . . . . . . 5 . . . . . Total Damage 192 | . . . . . . . . . 192 . . . . . Kills . | . . . . . . . . . . . . . . . Allies Corrupted . | . . . . . . . . . . . . . . . Allies Melted . | . . . . . . . . . . . . . . . Intel | -11 -10 -9 -8 -8 -7 -6 -5 -4 -4 -3 -2 -2 -2 -1 ------- Run | Yrd Mat Mat Mat Sto Fac Fac Fac Fac Ext Res Res Gar Res Acc Active Infowar (turns) 5138 | 21 398 279 730 521 373 120 102 191 555 409 301 158 335 645 Sensors 4330 | . . . 730 521 373 120 102 191 544 409 301 158 322 559 Terrain 3900 | 21 398 169 581 343 373 120 99 . 245 409 301 89 263 489 Seismic 686 | 9 398 279 . . . . . . . . . . . . Robot Analysis Total 1 | . . . 1 . . . . . . . . . . . Derelict Logs Recovered . | . . . . . . . . . . . . . . . Drone Launches . | . . . . . . . . . . . . . . . Drone Recoveries . | . . . . . . . . . . . . . . . Exploration | -11 -10 -9 -8 -8 -7 -6 -5 -4 -4 -3 -2 -2 -2 -1 ------------- Run | Yrd Mat Mat Mat Sto Fac Fac Fac Fac Ext Res Res Gar Res Acc Turns Passed 5728 | 165 398 368 733 521 373 120 305 213 555 409 301 158 369 740 Spaces Moved 6085 | 90 260 317 266 316 680 145 531 291 910 750 144 348 537 500 Core 271 | 16 . 10 . . . . . . . . . . 50 195 Treads . | . . . . . . . . . . . . . . . Legs 757 | 74 260 118 . . . . . . . . . . . 305 Wheels . | . . . . . . . . . . . . . . . Hover . | . . . . . . . . . . . . . . . Flight 5057 | . . 189 266 316 680 145 531 291 910 750 144 348 487 . Fastest Speed 21 | 50 120 29 29 26 26 26 28 25 25 21 21 21 23 50 Average Speed 40 | 107 120 68 48 27 26 27 32 27 26 21 21 22 37 92 Slowest Speed 150 | 120 120 120 109 29 26 98 34 34 101 21 21 103 150 120 Overloaded Moves . | . . . . . . . . . . . . . . . Propulsion Burnouts . | . . . . . . . . . . . . . . . Robots Hopped . | . . . . . . . . . . . . . . . Potential Cave-ins . | . . . . . . . . . . . . . . . Cave-ins Triggered . | . . . . . . . . . . . . . . . Exploration Rate (%) 21 | 5 42 35 14 42 21 4 13 7 54 13 2 40 15 14 Regions Visited 14 Branch Regions 2 Pre-discovered Areas . | . . . . . . . . . . . . . . . Known Exits Taken 10 | . . . 1 1 1 1 1 1 1 1 1 . 1 . Unknown Exits Taken 3 | 1 1 1 . . . . . . . . . . . . Scrap Searched . | . . . . . . . . . . . . . . . Spaces Dug 180 | . 7 3 14 6 34 10 16 27 25 22 3 1 11 1 Terrain Destroyed 604 | . 7 3 14 6 34 10 16 27 313 22 3 131 11 7 Melee 157 | . 7 3 14 6 34 10 16 27 2 22 3 1 11 1 Projectile 6 | . . . . . . . . . . . . . . 6 AOE 441 | . . . . . . . . . 311 . . 130 . . Terrain Rammed . | . . . . . . . . . . . . . . . Walls Destroyed . | . . . . . . . . . . . . . . . Machines Disabled . | . . . . . . . . . . . . . . . Actions | -11 -10 -9 -8 -8 -7 -6 -5 -4 -4 -3 -2 -2 -2 -1 --------- Run | Yrd Mat Mat Mat Sto Fac Fac Fac Fac Ext Res Res Gar Res Acc Total 8694 | 122 314 398 836 697 799 194 612 381 1148 958 411 392 672 760 Wait 1948 | . 23 12 534 284 67 26 45 51 162 177 257 4 87 219 Move 6073 | 89 259 316 265 315 679 144 530 290 909 749 144 347 537 500 Hop . | . . . . . . . . . . . . . . . Pick Up 58 | 8 7 5 4 5 3 2 1 4 3 1 3 2 3 7 Fast Attach 37 | . 1 5 3 10 . 1 4 . 4 . . 1 7 1 Attach 52 | 7 . 6 4 . 4 1 1 5 4 3 2 2 1 12 Detach 17 | . . 1 2 1 . . . . 3 . 2 2 1 5 Swap 2 | . . . . . . 1 . . . . . 1 . . Drop 46 | . 4 1 4 15 2 2 1 2 4 . . 3 8 . Fire 137 | 18 12 30 . . . . 4 . 36 . . 23 . 14 Melee 278 | . 8 22 20 31 44 17 26 29 23 28 3 7 18 2 Ram 10 | . . . . . . . . . . . . . 10 . Kick . | . . . . . . . . . . . . . . . Crush . | . . . . . . . . . . . . . . . Escape Stasis 36 | . . . . 36 . . . . . . . . . . Rewire . | . . . . . . . . . . . . . . . Trap . | . . . . . . . . . . . . . . . Miscellaneous . | . . . . . . . . . . . . . . . Route ------- -11/Scrapyard -10/Materials (discovered 2 exits: *Mat / [*Min]) -9/Materials -8/Materials -8/Storage -7/Factory (discovered 2 exits: *Fac / *Low) -6/Factory -5/Factory -4/Factory (discovered 2 exits: *Upp / *Ext) -4/Extension -3/Research -2/Research -2/Garrison -2/Research -1/Access History --------- Turn | Location | Event 7 | -11/Scrapyard | Discovered new exit (range 15) 166 | -11/Scrapyard | Entered Materials 305 | -10/Materials | Build established: Mutant 481 | -10/Materials | Discovered new exit (range 12) 504 | -10/Materials | Discovered new exit (range 12) 564 | -10/Materials | Entered another Materials area 564 | -9/Materials | Evolved 2 slots: Propulsion x2 831 | -9/Materials | Lost 6 parts (1p3n1u1w) 927 | -9/Materials | Discovered new exit (range 5) 932 | -9/Materials | Entered another Materials area 932 | -8/Materials | Evolved 2 slots: Utility x2 1260 | -8/Materials | Discovered new exit (range 11) 1492 | -8/Materials | Build established: Scout 1659 | -8/Materials | Identified exit to Storage 1665 | -8/Materials | Entered Storage 2159 | -8/Storage | Discovered new exit (range 16) 2162 | -8/Storage | Identified exit to Factory 2186 | -8/Storage | Entered Factory 2186 | -7/Factory | Evolved 2 slots: Utility x2 2338 | -7/Factory | Discovered new exit (range 16) 2378 | -7/Factory | Identified exit to Lower Caves 2554 | -7/Factory | Discovered new exit (range 8) 2556 | -7/Factory | Identified exit to Factory 2559 | -7/Factory | Entered another Factory area 2559 | -6/Factory | Evolved 2 slots: Power x1, Propulsion x1 2675 | -6/Factory | Discovered new exit (range 14) 2679 | -6/Factory | Identified exit to Factory 2679 | -6/Factory | Entered another Factory area 2679 | -5/Factory | Evolved 2 slots: Propulsion x1, Utility x1 2982 | -5/Factory | Discovered new exit (range 5) 2984 | -5/Factory | Identified exit to Factory 2984 | -5/Factory | Entered another Factory area 2984 | -4/Factory | Evolved 2 slots: Propulsion x1, Utility x1 3175 | -4/Factory | Discovered new exit (range 9) 3177 | -4/Factory | Identified exit to Upper Caves 3195 | -4/Factory | Discovered new exit (range 10) 3197 | -4/Factory | Identified exit to Extension 3197 | -4/Factory | Entered Extension 3208 | -4/Extension | Rescued a captive Derelict 3209 | -4/Extension | Rescued a captive Derelict 3211 | -4/Extension | Rescued a captive Derelict 3215 | -4/Extension | Energy Cycler disabled 3228 | -4/Extension | Rescued a captive Derelict 3234 | -4/Extension | Rescued a captive Derelict 3234 | -4/Extension | Rescued a captive Derelict 3236 | -4/Extension | Rescued a captive Derelict 3337 | -4/Extension | Build established: Sprinter 3397 | -4/Extension | Disrupted transfer network 3581 | -4/Extension | Spotted B-86 Titan 3617 | -4/Extension | Destroyed B-86 Titan 3631 | -4/Extension | Destroyed B-86 Titan 3671 | -4/Extension | Destroyed 8 combat bots 3680 | -4/Extension | Discovered new exit (range 16) 3686 | -4/Extension | Extracted ID and sensor layout for unrecognized location from A7's data core 3732 | -4/Extension | Identified exit to Research 3752 | -4/Extension | Entered Research 3752 | -3/Research | Evolved 2 slots: Propulsion x1, Weapon x1 3869 | -3/Research | Build established: Scavenger-Scout 4150 | -3/Research | Discovered new exit (range 12) 4150 | -3/Research | Spotted B-86 Titan 4157 | -3/Research | Identified exit to Research 4161 | -3/Research | Entered another Research area 4161 | -2/Research | Evolved 2 slots: Power x1, Utility x1 4435 | -2/Research | Identified exit to Garrison 4462 | -2/Research | Entered Garrison 4469 | -2/Garrison | Installed Relay Interface Framework 4500 | -2/Garrison | Spotted B-90 Cyclops 4525 | -2/Garrison | Triggered checkpoint 4537 | -2/Garrison | Destroyed B-90 Cyclops 4539 | -2/Garrison | Triggered checkpoint 4570 | -2/Garrison | Triggered checkpoint 4610 | -2/Garrison | Discovered new exit (range 10) 4620 | -2/Garrison | Identified exit to Research 4620 | -2/Garrison | Entered Research 4626 | -2/Research | Destroyed 19 combat bots 4936 | -2/Research | Spotted B-90 Cyclops 4957 | -2/Research | System corruption reached 10% 4961 | -2/Research | Core integrity fell below 50% 4981 | -2/Research | Discovered new exit (range 14) 4987 | -2/Research | Identified exit to Access 4989 | -2/Research | Entered Access 4989 | -1/Access | Evolved 2 slots: Power x1, Propulsion x1 5006 | -1/Access | Lost 15 parts (2p7n5u1w) 5637 | -1/Access | Build established: Mutant 5723 | -1/Access | Core integrity fell below 50% 5726 | -1/Access | Core integrity fell below 20% 5729 | -1/Access | Destroyed by S-43 Plague with Heavy Machine Gun Last Messages --------------- System corrupted: Component data lost. Penetrated by Slug. Knocked back. Penetrated by Slug. U-05 Engineer destroyed. [Achievement: Hunted] U-05 Engineer lays Concrete. Adv. Weight Redist. System severed. Adv. Signal Interpreter severed. U-05 Engineer lays Concrete. Slug penetrates Wall. P-80 Master resets A-15 Conveyor, system corruption cleaned. Penetrated by Slug. P-80 Master resets S-43 Plague, system corruption cleaned. Slug penetrates S-43 Plague. Penetrated by Slug. Slug penetrates Wall. Penetrated by Slug. Map ----- +----------------------------------------------------+ | ############# #? ?????????????????????? | | #? ?????????????????????? | | # ?????????????????????? | | # ????????????????????? | | + " ??????????????????????? | | # """??????????????????????? | | #?? "???????????????????????? | | #???????????????????????????? | | ############ #???????????????????????????? | | ???????????### #???????????????????????????? | | ?????????????# #???????????????????????????? | | ?????????????# #???????????????????????????? | | ?????????????# #???????????????????????????? | | ?????????????# #???????????????????????????? | | ?????????????# #???????????????????????????? | | ?????????????# ! #???????????????????????????? | | ?????????????# !%#???????????????????????????? | | ?????????????# |#???????????????????????????? | | ?????????????# #???????????????????????????? | | ?????????????# #???????????????????????????? | | ?????????????# #???????????????????????????? | | ?????????????# ss########????????????????????? | | ?????????????# p cc #????????????????????? | | ?????????????# shss #????????????????????? | | ?????????????# p h #????????????????????? | | ?????????????# R @ #????????????????????? | | ?????????????# #????????????????????? | | ?????????????# #????????????????????? | | ?????????????# #????????????????????? | | ?????????????######## #????????????????????? | | ????????????????????# #????????????????????? | | ????????????????????# #????????????????????? | | ????????????????????# #????????????????????? | | ????????????????????# #????????????????????? | | ????????????????????# k #????????????????????? | | ????????????????????# #????????????????????? | | ????????????????????# A????????????????????? | | ????????????????????# ????????????????????? | | ????????????????????# ????????????????????? | | ????????????????????# ????????????????????? | | ?????????????????????? w ?????????????????????? | | ?????????????????????????????????????????????????? | | ?????????????????????????????????????????????????? | | ?????????????????????????????????????????????????? | | ?????????????????????????????????????????????????? | | ?????????????????????????????????????????????????? | | ?????????????????????????????????????????????????? | | ?????????????????????????????????????????????????? | | ?????????????????????????????????????????????????? | | ?????????????????????????????????????????????????? | +----------------------------------------------------+ Best States ------------- Heat Dissipation 52 Energy Generation 45 Energy Capacity 420 Matter Stores 300 Matter Capacity 300 Sight Range 16 Robot Scan Range 16 Terrain Scan Range 24 Terrain Scan Density 160 Additional Mass Support 9 Armor Coverage 225 Evasion (%) 73 Targeting Accuracy 8 Matter Filtering 30 Item Schematics ----------------- None Robot Schematics ------------------ None Fabricated ------------ Nothing Repaired ---------- Nothing Alien Tech Used ----------------- None Achievements -------------- Denied? Dramatic Entrance Hunted Challenges ------------ None Game ------ Seed SingularityGuidanceClaws Manual? 0 Play Time 02:36:18 Cumulative 30.3 hours Start 2025.10.10 @ 05:37:06 End 2025.10.11 @ 08:21:57 Sessions 13 Manual Loads 0 Difficulty Rogue Special Mode None Game No. 41 Rogue 14 Adventurer 0 Explorer 27 Win Type - Total 0 Types 0/0/0/0/0/0/0/0/0/0 Lore% 19 Gallery% 34 Achievement% 27 Wizard Run 0 Options --------- Layout 2 ASCII 0 Keyboard 0 Movement Mouse Keybinds 0 Fullscreen 2 Font 16/SmallcapsGlow Map View 50x44 Zoom Use 0% Tactical HUD 0 Map Filters NONE Filters NONE Steam X RUN: bb55581f-4a6a-434b-bb6e-ca14747d17da